[Event "*** Titled Tuesday Blitz"]
[Site "Chess.com"]
[Date "2020.12.01"]
[Round "8"]
[White "Klavdia_Nik"]
[Black "Ze-Pequeno"]
[Result "1-0"]
[WhiteElo "2069"]
[BlackElo "2160"]
[TimeControl "180+1"]
[EndTime "11:28:03 PST"]
[Termination "Klavdia_Nik won on time"]

1. Nf3 {[%clk 0:03:00.9]} 1... Nf6 {[%clk 0:02:58.8]} 2. c4 {[%clk 0:03:00.6]}
2... e6 {[%clk 0:02:58.8]} 3. b3 {[%clk 0:03:00.4]} 3... d5 {[%clk 0:02:58.5]}
4. Bb2 {[%clk 0:03:00.2]} 4... Be7 {[%clk 0:02:58.2]} 5. g3 {[%clk 0:03:00.2]}
5... O-O {[%clk 0:02:57.5]} 6. Bg2 {[%clk 0:03:00.1]} 6... b6 {[%clk 0:02:57.9]}
7. O-O {[%clk 0:03:00]} 7... Bb7 {[%clk 0:02:58.2]} 8. d3 {[%clk 0:03:00]} 8...
c5 {[%clk 0:02:57.3]} 9. Nbd2 {[%clk 0:02:58.1]} 9... Nc6 {[%clk 0:02:56]} 10.
a3 {[%clk 0:02:56.9]} 10... Re8 {[%clk 0:02:53.6]} 11. Qc2 {[%clk 0:02:54.5]}
11... Rc8 {[%clk 0:02:51.8]} 12. e4 {[%clk 0:02:49.2]} 12... dxe4 {[%clk
0:02:46.1]} 13. dxe4 {[%clk 0:02:48.4]} 13... Nd4 {[%clk 0:02:44.4]} 14. Nxd4
{[%clk 0:02:42.2]} 14... cxd4 {[%clk 0:02:44.2]} 15. Qd3 {[%clk 0:02:40.9]}
15... e5 {[%clk 0:02:42.3]} 16. b4 {[%clk 0:02:34.4]} 16... a5 {[%clk
0:02:34.4]} 17. Qb3 {[%clk 0:01:50.5]} 17... Qc7 {[%clk 0:02:02.9]} 18. Rfe1
{[%clk 0:01:44.3]} 18... Ra8 {[%clk 0:02:00.3]} 19. f3 {[%clk 0:01:24.1]} 19...
Bc6 {[%clk 0:01:54.9]} 20. Bf1 {[%clk 0:01:22]} 20... Qd6 {[%clk 0:01:18]} 21.
b5 {[%clk 0:01:14.7]} 21... Bd7 {[%clk 0:00:35.9]} 22. a4 {[%clk 0:01:12.3]}
22... Qc7 {[%clk 0:00:33.8]} 23. Ba3 {[%clk 0:01:06.7]} 23... Be6 {[%clk
0:00:33.2]} 24. Bxe7 {[%clk 0:01:02.7]} 24... Qxe7 {[%clk 0:00:32.9]} 25. Qa3
{[%clk 0:01:01.4]} 25... Nd7 {[%clk 0:00:29.5]} 26. Qxe7 {[%clk 0:00:57.2]}
26... Rxe7 {[%clk 0:00:30.4]} 27. Nb3 {[%clk 0:00:55]} 27... Rc8 {[%clk
0:00:30.3]} 28. Rac1 {[%clk 0:00:54.8]} 28... Nc5 {[%clk 0:00:29.6]} 29. Nxc5
{[%clk 0:00:51.8]} 29... Rxc5 {[%clk 0:00:30.5]} 30. Rc2 {[%clk 0:00:50.1]}
30... Rec7 {[%clk 0:00:30.3]} 31. Rec1 {[%clk 0:00:50.4]} 31... f6 {[%clk
0:00:30.2]} 32. Bd3 {[%clk 0:00:50]} 32... Kf7 {[%clk 0:00:30.3]} 33. Kf2 {[%clk
0:00:50.2]} 33... Ke7 {[%clk 0:00:31.1]} 34. f4 {[%clk 0:00:48.1]} 34... Kd6
{[%clk 0:00:32]} 35. Kf3 {[%clk 0:00:47.6]} 35... Rc8 {[%clk 0:00:30.5]} 36. g4
{[%clk 0:00:44.4]} 36... exf4 {[%clk 0:00:26.8]} 37. Kxf4 {[%clk 0:00:44.4]}
37... Re5 {[%clk 0:00:24.9]} 38. Kf3 {[%clk 0:00:18.3]} 38... Rg5 {[%clk
0:00:22.6]} 39. h3 {[%clk 0:00:18.4]} 39... h5 {[%clk 0:00:22.9]} 40. Rg2 {[%clk
0:00:15.9]} 40... hxg4+ {[%clk 0:00:21.4]} 41. hxg4 {[%clk 0:00:15.6]} 41... Rh8
{[%clk 0:00:21.7]} 42. Rg3 {[%clk 0:00:15.3]} 42... Rh4 {[%clk 0:00:20.9]} 43.
Rcg1 {[%clk 0:00:14.1]} 43... Rh2 {[%clk 0:00:20.2]} 44. R1g2 {[%clk 0:00:13.5]}
44... Rh1 {[%clk 0:00:19.2]} 45. Rg1 {[%clk 0:00:13.7]} 45... Rh2 {[%clk
0:00:18.9]} 46. R1g2 {[%clk 0:00:14]} 46... Rh4 {[%clk 0:00:18.3]} 47. Kf4
{[%clk 0:00:10.6]} 47... Rc5 {[%clk 0:00:17]} 48. Kf3 {[%clk 0:00:09.4]} 48...
Bxc4 {[%clk 0:00:13.9]} 49. Ke2 {[%clk 0:00:07.8]} 49... Bxd3+ {[%clk
0:00:10.4]} 50. Kxd3 {[%clk 0:00:07.5]} 50... Ke5 {[%clk 0:00:11.3]} 51. Kd2
{[%clk 0:00:07]} 51... Kxe4 {[%clk 0:00:10.4]} 52. g5 {[%clk 0:00:06.9]} 52...
f5 {[%clk 0:00:10.1]} 53. Rd3 {[%clk 0:00:02.7]} 53... Rc4 {[%clk 0:00:04.7]}
54. Re2+ {[%clk 0:00:02.5]} 54... Kd5 {[%clk 0:00:05]} 55. g6 {[%clk 0:00:02.5]}
55... Rxa4 {[%clk 0:00:04.7]} 56. Ke1 {[%clk 0:00:01.3]} 56... Ra1+ {[%clk
0:00:03.2]} 57. Rd1 {[%clk 0:00:01.1]} 1-0

[Event "*** Titled Tuesday Blitz"]
[Site "Chess.com"]
[Date "2020.12.01"]
[Round "8"]
[White "gmcorrales"]
[Black "dropstoneDP"]
[Result "0-1"]
[WhiteElo "2782"]
[BlackElo "2919"]
[TimeControl "180+1"]
[EndTime "11:28:05 PST"]
[Termination "dropstoneDP won by resignation"]

1. e4 {[%clk 0:03:00.9]} 1... e6 {[%clk 0:03:00.4]} 2. d4 {[%clk 0:03:00.9]}
2... d5 {[%clk 0:03:01]} 3. e5 {[%clk 0:03:01.6]} 3... c5 {[%clk 0:03:00.7]} 4.
c3 {[%clk 0:03:02.2]} 4... Nc6 {[%clk 0:03:01]} 5. Nf3 {[%clk 0:03:02.4]} 5...
Bd7 {[%clk 0:02:57.9]} 6. Be2 {[%clk 0:02:52.4]} 6... f6 {[%clk 0:02:57.7]} 7.
O-O {[%clk 0:02:52]} 7... fxe5 {[%clk 0:02:56.2]} 8. Nxe5 {[%clk 0:02:52.9]}
8... Nxe5 {[%clk 0:02:56.5]} 9. dxe5 {[%clk 0:02:53.8]} 9... Ne7 {[%clk
0:02:56.5]} 10. Bf4 {[%clk 0:02:42.1]} 10... g6 {[%clk 0:02:47.7]} 11. Nd2
{[%clk 0:02:41.3]} 11... Bg7 {[%clk 0:02:47.7]} 12. Nf3 {[%clk 0:02:39.2]} 12...
O-O {[%clk 0:02:47.9]} 13. Qd2 {[%clk 0:02:36.5]} 13... Qb6 {[%clk 0:02:46.1]}
14. b3 {[%clk 0:02:27.5]} 14... Rf5 {[%clk 0:02:30.8]} 15. Bh6 {[%clk 0:02:27]}
15... Raf8 {[%clk 0:02:23.6]} 16. Bxg7 {[%clk 0:02:26.9]} 16... Kxg7 {[%clk
0:02:24.5]} 17. Rae1 {[%clk 0:02:26.1]} 17... h6 {[%clk 0:02:05.2]} 18. Bd3
{[%clk 0:02:23.5]} 18... R5f7 {[%clk 0:01:51.5]} 19. h3 {[%clk 0:02:15]} 19...
Rxf3 {[%clk 0:01:47.6]} 20. gxf3 {[%clk 0:02:15.9]} 20... g5 {[%clk 0:01:36.2]}
21. h4 {[%clk 0:02:12.6]} 21... Rf4 {[%clk 0:01:30.5]} 22. hxg5 {[%clk 0:02:10]}
22... hxg5 {[%clk 0:01:30.6]} 23. Kg2 {[%clk 0:02:09.4]} 23... Bb5 {[%clk
0:01:26.2]} 24. Rh1 {[%clk 0:01:35]} 24... Bxd3 {[%clk 0:01:13.2]} 25. Qxd3
{[%clk 0:01:35.9]} 25... Ng6 {[%clk 0:01:13.8]} 26. Reg1 {[%clk 0:01:34.7]}
26... c4 {[%clk 0:00:44.2]} 27. Qd2 {[%clk 0:01:26.4]} 27... cxb3 {[%clk
0:00:35.6]} 28. axb3 {[%clk 0:01:25.9]} 28... Rf5 {[%clk 0:00:35.1]} 29. Kf1
{[%clk 0:01:10.8]} 29... Qb5+ {[%clk 0:00:28.7]} 30. Ke1 {[%clk 0:01:01.3]}
30... Rxe5+ {[%clk 0:00:27.9]} 31. Kd1 {[%clk 0:01:00.1]} 31... Qxb3+ {[%clk
0:00:27.2]} 32. Kc1 {[%clk 0:00:55.8]} 32... Nf4 {[%clk 0:00:17.8]} 33. Re1
{[%clk 0:00:39.9]} 33... Rxe1+ {[%clk 0:00:05.3]} 34. Rxe1 {[%clk 0:00:40.8]}
34... Kf7 {[%clk 0:00:05.2]} 35. Rh1 {[%clk 0:00:39.9]} 35... Qa3+ {[%clk
0:00:05.4]} 36. Kb1 {[%clk 0:00:40.2]} 36... Qb3+ {[%clk 0:00:02.9]} 37. Ka1
{[%clk 0:00:39.3]} 37... Qa4+ {[%clk 0:00:02.9]} 38. Kb1 {[%clk 0:00:37.2]}
38... Qb5+ {[%clk 0:00:03.1]} 39. Ka1 {[%clk 0:00:37.3]} 39... Qa4+ {[%clk
0:00:03.2]} 40. Kb1 {[%clk 0:00:37.5]} 40... Kf6 {[%clk 0:00:03.7]} 41. Rh6+
{[%clk 0:00:35.5]} 41... Kf5 {[%clk 0:00:02.4]} 42. Rh7 {[%clk 0:00:35.3]} 42...
Qb5+ {[%clk 0:00:02.4]} 43. Ka2 {[%clk 0:00:29.2]} 43... Qc4+ {[%clk 0:00:02.1]}
44. Kb2 {[%clk 0:00:29.3]} 44... Nd3+ {[%clk 0:00:02.4]} 45. Kc2 {[%clk
0:00:27.7]} 45... Nb4+ {[%clk 0:00:02.7]} 46. Kc1 {[%clk 0:00:25]} 46... Qf1+
{[%clk 0:00:01.9]} 47. Kb2 {[%clk 0:00:23.9]} 47... Nd3+ {[%clk 0:00:02.4]} 48.
Ka2 {[%clk 0:00:20.5]} 48... Qxf2 {[%clk 0:00:02.1]} 49. Qxf2 {[%clk 0:00:18.1]}
49... Nxf2 {[%clk 0:00:03]} 50. Rxb7 {[%clk 0:00:18.6]} 50... a5 {[%clk
0:00:03]} 51. Kb3 {[%clk 0:00:18]} 51... Nd3 {[%clk 0:00:02.9]} 52. Kc2 {[%clk
0:00:17.3]} 52... Ne5 {[%clk 0:00:03.3]} 53. Kd1 {[%clk 0:00:14.5]} 53... Nxf3
{[%clk 0:00:02.5]} 54. Ke2 {[%clk 0:00:14.9]} 54... Ne5 {[%clk 0:00:02.5]} 55.
Ke3 {[%clk 0:00:13.2]} 55... Nc4+ {[%clk 0:00:02.5]} 56. Kd4 {[%clk 0:00:13.7]}
56... g4 {[%clk 0:00:03]} 57. Rf7+ {[%clk 0:00:13.7]} 57... Kg6 {[%clk
0:00:03.3]} 58. Re7 {[%clk 0:00:13.9]} 58... Kf6 {[%clk 0:00:03.8]} 59. Re8
{[%clk 0:00:13.8]} 59... Kf5 {[%clk 0:00:04.1]} 60. Rf8+ {[%clk 0:00:14]} 60...
Kg5 {[%clk 0:00:04.7]} 61. Re8 {[%clk 0:00:14.1]} 61... g3 {[%clk 0:00:04.6]}
62. Rxe6 {[%clk 0:00:14.3]} 62... g2 {[%clk 0:00:04.6]} 63. Re1 {[%clk
0:00:13.6]} 63... Kf4 {[%clk 0:00:05]} 64. Kxd5 {[%clk 0:00:13.1]} 64... Ne3+
{[%clk 0:00:05.3]} 65. Kd4 {[%clk 0:00:12.5]} 65... Nf1 {[%clk 0:00:05.7]} 66.
Re4+ {[%clk 0:00:12.2]} 66... Kf3 {[%clk 0:00:05.6]} 67. Ke5 {[%clk 0:00:12.5]}
67... g1=Q {[%clk 0:00:05.9]} 68. Rf4+ {[%clk 0:00:13]} 68... Ke2 {[%clk
0:00:06.5]} 69. Re4+ {[%clk 0:00:13.5]} 69... Ne3 {[%clk 0:00:07.2]} 70. Kd4
{[%clk 0:00:12.4]} 70... Qg7+ {[%clk 0:00:07]} 71. Kc5 {[%clk 0:00:12.5]} 71...
Qxc3+ {[%clk 0:00:07.4]} 0-1

[Event "*** Titled Tuesday Blitz"]
[Site "Chess.com"]
[Date "2020.12.01"]
[Round "8"]
[White "j_coca"]
[Black "KonstantinB_1983"]
[Result "1-0"]
[WhiteElo "2392"]
[BlackElo "2494"]
[TimeControl "180+1"]
[EndTime "11:28:08 PST"]
[Termination "j_coca won by resignation"]

1. f4 {[%clk 0:02:56.4]} 1... d6 {[%clk 0:02:56.2]} 2. Nf3 {[%clk 0:02:55.7]}
2... Bg4 {[%clk 0:02:54.2]} 3. e3 {[%clk 0:02:55.7]} 3... e5 {[%clk 0:02:52.6]}
4. Be2 {[%clk 0:02:49.4]} 4... exf4 {[%clk 0:02:47.9]} 5. exf4 {[%clk
0:02:47.9]} 5... Nf6 {[%clk 0:02:48.1]} 6. O-O {[%clk 0:02:37.5]} 6... Be7
{[%clk 0:02:47.2]} 7. Nc3 {[%clk 0:02:37.3]} 7... O-O {[%clk 0:02:43.1]} 8. d3
{[%clk 0:02:37.5]} 8... Nc6 {[%clk 0:02:41.7]} 9. Ne4 {[%clk 0:02:36.8]} 9... d5
{[%clk 0:02:38]} 10. Nf2 {[%clk 0:02:35.2]} 10... Bf5 {[%clk 0:02:32.1]} 11. h3
{[%clk 0:02:32.7]} 11... h6 {[%clk 0:02:26.5]} 12. g4 {[%clk 0:02:29.8]} 12...
Bh7 {[%clk 0:02:24.8]} 13. f5 {[%clk 0:02:29.5]} 13... Nd7 {[%clk 0:02:19.9]}
14. c3 {[%clk 0:02:28.4]} 14... Kh8 {[%clk 0:02:14.1]} 15. d4 {[%clk 0:02:28.5]}
15... Rb8 {[%clk 0:02:11]} 16. Nd3 {[%clk 0:02:28.6]} 16... Bd6 {[%clk
0:02:09.3]} 17. Bf4 {[%clk 0:02:26.9]} 17... Nf6 {[%clk 0:02:08.3]} 18. Nde5
{[%clk 0:02:16.9]} 18... Ne4 {[%clk 0:02:04.1]} 19. Bd3 {[%clk 0:02:15.9]} 19...
f6 {[%clk 0:02:01.8]} 20. Nxc6 {[%clk 0:02:14.3]} 20... bxc6 {[%clk 0:01:58.4]}
21. Bc1 {[%clk 0:01:57.6]} 21... Qd7 {[%clk 0:01:49.7]} 22. Qc2 {[%clk
0:01:56.7]} 22... Rfe8 {[%clk 0:01:48.2]} 23. Re1 {[%clk 0:01:54.7]} 23... Ng3
{[%clk 0:01:35.4]} 24. Be3 {[%clk 0:01:45.8]} 24... c5 {[%clk 0:01:20.1]} 25.
dxc5 {[%clk 0:01:32.4]} 25... Rxe3 {[%clk 0:01:18.6]} 26. Rxe3 {[%clk 0:01:32]}
26... Bxc5 {[%clk 0:01:18.3]} 27. Nd4 {[%clk 0:01:32.4]} 27... Ne4 {[%clk
0:01:16]} 28. Bxe4 {[%clk 0:01:31.8]} 28... dxe4 {[%clk 0:01:15.1]} 29. Rd1
{[%clk 0:01:30.9]} 29... Bg8 {[%clk 0:01:08.4]} 30. Rxe4 {[%clk 0:01:23.3]}
30... Bd5 {[%clk 0:01:06.1]} 31. Re3 {[%clk 0:01:15.9]} 31... Ba8 {[%clk
0:01:00.6]} 32. b4 {[%clk 0:01:14.8]} 32... Bb6 {[%clk 0:00:57.4]} 33. Kh2
{[%clk 0:00:57]} 33... Qd6+ {[%clk 0:00:46.3]} 34. Rg3 {[%clk 0:00:54.7]} 34...
Qf4 {[%clk 0:00:42.1]} 35. Ne6 {[%clk 0:00:47.8]} 35... Qe5 {[%clk 0:00:34]} 36.
Qd2 {[%clk 0:00:39]} 36... h5 {[%clk 0:00:23.3]} 37. Nf4 {[%clk 0:00:26.1]}
37... Kh7 {[%clk 0:00:20.1]} 38. Nxh5 {[%clk 0:00:19.9]} 38... Bc6 {[%clk
0:00:09.8]} 39. Nf4 {[%clk 0:00:19.9]} 39... Qe4 {[%clk 0:00:09.2]} 40. Ng6
{[%clk 0:00:19.2]} 40... Re8 {[%clk 0:00:07.3]} 41. h4 {[%clk 0:00:16.2]} 41...
Be3 {[%clk 0:00:07]} 42. Rxe3 {[%clk 0:00:15]} 42... Qxe3 {[%clk 0:00:06.5]} 43.
Qxe3 {[%clk 0:00:15.4]} 43... Rxe3 {[%clk 0:00:06.6]} 44. Rd8 {[%clk 0:00:16.2]}
44... Re8 {[%clk 0:00:06.4]} 45. Rxe8 {[%clk 0:00:15.2]} 45... Bxe8 {[%clk
0:00:06.6]} 46. Nf8+ {[%clk 0:00:15.7]} 46... Kg8 {[%clk 0:00:05.9]} 47. Ne6
{[%clk 0:00:16.6]} 47... c6 {[%clk 0:00:05.3]} 48. Nc7 {[%clk 0:00:16.9]} 48...
Bd7 {[%clk 0:00:05.4]} 49. Kg3 {[%clk 0:00:17.8]} 49... Kf7 {[%clk 0:00:05.6]}
50. Kf4 {[%clk 0:00:18]} 50... Ke7 {[%clk 0:00:06.5]} 51. Na6 {[%clk 0:00:18.2]}
51... Kd6 {[%clk 0:00:07.4]} 52. Nc5 {[%clk 0:00:19]} 52... Bc8 {[%clk
0:00:06.6]} 53. c4 {[%clk 0:00:18.4]} 53... Kc7 {[%clk 0:00:06.2]} 54. a4 {[%clk
0:00:18.3]} 54... Kd6 {[%clk 0:00:06.1]} 55. Ne4+ {[%clk 0:00:18.1]} 55... Ke7
{[%clk 0:00:04.6]} 56. Ke3 {[%clk 0:00:18.5]} 56... Kd7 {[%clk 0:00:04.1]} 57.
Kd4 {[%clk 0:00:18.6]} 57... Kc7 {[%clk 0:00:04.4]} 58. Nc5 {[%clk 0:00:18.5]}
58... Bd7 {[%clk 0:00:04.8]} 59. Ne6+ {[%clk 0:00:18.3]} 59... Kd6 {[%clk
0:00:03]} 60. Nxg7 {[%clk 0:00:18]} 60... Ke7 {[%clk 0:00:03.3]} 61. Nh5 {[%clk
0:00:18.3]} 61... Kf7 {[%clk 0:00:03.7]} 62. Kc5 {[%clk 0:00:18.3]} 62... Bc8
{[%clk 0:00:04]} 63. Kxc6 {[%clk 0:00:18.2]} 63... Ke7 {[%clk 0:00:04.5]} 64.
Kc7 {[%clk 0:00:18]} 64... Bd7 {[%clk 0:00:05.4]} 65. b5 {[%clk 0:00:17.8]}
65... Be8 {[%clk 0:00:04.9]} 66. Nxf6 {[%clk 0:00:16.8]} 66... Bf7 {[%clk
0:00:05.8]} 67. c5 {[%clk 0:00:17.2]} 67... Kxf6 {[%clk 0:00:06.3]} 68. b6
{[%clk 0:00:17.7]} 68... axb6 {[%clk 0:00:05.6]} 69. cxb6 {[%clk 0:00:18.6]}
69... Bd5 {[%clk 0:00:05.7]} 70. b7 {[%clk 0:00:19.5]} 70... Bxb7 {[%clk
0:00:05.6]} 71. Kxb7 {[%clk 0:00:20.4]} 71... Ke5 {[%clk 0:00:05.9]} 72. a5
{[%clk 0:00:19.6]} 72... Kf4 {[%clk 0:00:06.8]} 73. f6 {[%clk 0:00:19.5]} 73...
Kxg4 {[%clk 0:00:07.7]} 74. f7 {[%clk 0:00:19.9]} 74... Kxh4 {[%clk 0:00:08.3]}
75. f8=Q {[%clk 0:00:19.8]} 1-0

[Event "*** Titled Tuesday Blitz"]
[Site "Chess.com"]
[Date "2020.12.01"]
[Round "8"]
[White "wonderfultime"]
[Black "ENajer77"]
[Result "1-0"]
[WhiteElo "2929"]
[BlackElo "2683"]
[TimeControl "180+1"]
[EndTime "11:28:29 PST"]
[Termination "wonderfultime won on time"]

1. e4 {[%clk 0:03:00.9]} 1... c6 {[%clk 0:02:59.2]} 2. Nc3 {[%clk 0:03:00.6]}
2... d5 {[%clk 0:02:59.3]} 3. d4 {[%clk 0:03:01.2]} 3... dxe4 {[%clk 0:02:58.7]}
4. Nxe4 {[%clk 0:03:02.1]} 4... Bf5 {[%clk 0:02:57.7]} 5. Qf3 {[%clk 0:03:02.5]}
5... e6 {[%clk 0:02:56]} 6. Ne2 {[%clk 0:03:02.6]} 6... Nd7 {[%clk 0:02:52.4]}
7. N2g3 {[%clk 0:03:01.7]} 7... Bg6 {[%clk 0:02:52.1]} 8. h4 {[%clk 0:03:02.2]}
8... h6 {[%clk 0:02:49]} 9. Bd3 {[%clk 0:03:02]} 9... Bxe4 {[%clk 0:02:14.7]}
10. Nxe4 {[%clk 0:03:00.4]} 10... Ngf6 {[%clk 0:02:15.2]} 11. c3 {[%clk
0:02:56.2]} 11... Be7 {[%clk 0:02:14.2]} 12. Bf4 {[%clk 0:02:52.7]} 12... Nxe4
{[%clk 0:02:13.4]} 13. Qxe4 {[%clk 0:02:52.9]} 13... Nf6 {[%clk 0:02:12.2]} 14.
Qe2 {[%clk 0:02:53]} 14... Nd5 {[%clk 0:02:09.5]} 15. Bd2 {[%clk 0:02:51.6]}
15... Bxh4 {[%clk 0:02:01.2]} 16. Qg4 {[%clk 0:01:47.4]} 16... Bf6 {[%clk
0:01:59.7]} 17. O-O-O {[%clk 0:01:47.9]} 17... Qb6 {[%clk 0:01:41.6]} 18. f4
{[%clk 0:01:40.3]} 18... O-O-O {[%clk 0:01:38.6]} 19. f5 {[%clk 0:01:39.9]}
19... exf5 {[%clk 0:01:35.9]} 20. Qxf5+ {[%clk 0:01:39.9]} 20... Kb8 {[%clk
0:01:36]} 21. Rhe1 {[%clk 0:01:38.5]} 21... a6 {[%clk 0:01:12.2]} 22. Bc4 {[%clk
0:01:31.3]} 22... Qc7 {[%clk 0:01:05.1]} 23. Kb1 {[%clk 0:01:16.7]} 23... Ka7
{[%clk 0:01:05]} 24. Bb3 {[%clk 0:01:12.6]} 24... Qd7 {[%clk 0:00:55.3]} 25. Qh5
{[%clk 0:01:05.1]} 25... g6 {[%clk 0:00:52.2]} 26. Qf3 {[%clk 0:01:03.7]} 26...
Bg5 {[%clk 0:00:52.2]} 27. Bxg5 {[%clk 0:00:56.2]} 27... hxg5 {[%clk 0:00:52.1]}
28. c4 {[%clk 0:00:57.1]} 28... Nf4 {[%clk 0:00:48.2]} 29. d5 {[%clk 0:00:53.6]}
29... cxd5 {[%clk 0:00:45]} 30. cxd5 {[%clk 0:00:54.5]} 30... f5 {[%clk
0:00:33.5]} 31. g3 {[%clk 0:00:51.8]} 31... Nh5 {[%clk 0:00:25.5]} 32. Qe3+
{[%clk 0:00:50.9]} 32... Ka8 {[%clk 0:00:24]} 33. Qxg5 {[%clk 0:00:51.8]} 33...
Qd6 {[%clk 0:00:23.3]} 34. Re3 {[%clk 0:00:45.1]} 34... Rhe8 {[%clk 0:00:22.3]}
35. Red3 {[%clk 0:00:40.5]} 35... Re4 {[%clk 0:00:19.2]} 36. Qd2 {[%clk
0:00:16.4]} 36... Nxg3 {[%clk 0:00:18]} 37. Qg2 {[%clk 0:00:16.8]} 37... Rg4
{[%clk 0:00:14.7]} 38. Rc1 {[%clk 0:00:14.2]} 38... Ne4 {[%clk 0:00:14.6]} 39.
Qc2 {[%clk 0:00:12.5]} 39... Rg3 {[%clk 0:00:12.9]} 40. Rd4 {[%clk 0:00:10.1]}
40... Qb6 {[%clk 0:00:10.7]} 41. Rc4 {[%clk 0:00:09]} 41... Ka7 {[%clk
0:00:09.6]} 42. Rc7 {[%clk 0:00:08]} 42... Nd6 {[%clk 0:00:05.2]} 43. Rg7 {[%clk
0:00:05.6]} 43... g5 {[%clk 0:00:05.2]} 44. Ka1 {[%clk 0:00:04.3]} 44... f4
{[%clk 0:00:05.5]} 45. Rg6 {[%clk 0:00:03.7]} 45... Qd4 {[%clk 0:00:03.8]} 46.
Qc7 {[%clk 0:00:03.3]} 46... Rg2 {[%clk 0:00:03.2]} 47. Rb1 {[%clk 0:00:02.1]}
47... Qb6 {[%clk 0:00:02.7]} 48. Qc3 {[%clk 0:00:01.5]} 48... Rc8 {[%clk
0:00:02.5]} 49. Qf6 {[%clk 0:00:01.9]} 49... Rd8 {[%clk 0:00:01.5]} 50. Qe7
{[%clk 0:00:02]} 50... Re8 {[%clk 0:00:01.1]} 51. Qxd6 {[%clk 0:00:02]} 51...
Qxd6 {[%clk 0:00:01.7]} 52. Rxd6 {[%clk 0:00:02.9]} 52... f3 {[%clk 0:00:02.4]}
53. Rf6 {[%clk 0:00:03.5]} 53... g4 {[%clk 0:00:02.9]} 54. Bc4 {[%clk
0:00:03.7]} 54... Re4 {[%clk 0:00:01.9]} 55. Bf1 {[%clk 0:00:03.2]} 55... Rd2
{[%clk 0:00:01.8]} 56. d6 {[%clk 0:00:02.7]} 56... Red4 {[%clk 0:00:02.1]} 57.
Rg6 {[%clk 0:00:02.5]} 57... f2 {[%clk 0:00:02.4]} 58. a3 {[%clk 0:00:02.3]}
58... Kb6 {[%clk 0:00:02.6]} 59. Ka2 {[%clk 0:00:01.7]} 59... Kc5 {[%clk
0:00:02.7]} 60. d7 {[%clk 0:00:01.3]} 60... Rxd7 {[%clk 0:00:02.3]} 61. Rxg4
{[%clk 0:00:01.7]} 61... Kb6 {[%clk 0:00:02.6]} 62. Rf4 {[%clk 0:00:02]} 62...
Ka7 {[%clk 0:00:02.8]} 63. Rf6 {[%clk 0:00:02.2]} 63... Re7 {[%clk 0:00:03.1]}
64. Bg2 {[%clk 0:00:01.8]} 64... Re1 {[%clk 0:00:03.5]} 65. Rf3 {[%clk
0:00:01.7]} 65... Rg1 {[%clk 0:00:02.9]} 66. Bf1 {[%clk 0:00:01.8]} 66... Kb6
{[%clk 0:00:02.9]} 67. Rc1 {[%clk 0:00:02.3]} 67... Ka7 {[%clk 0:00:02.8]} 68.
Rf7 {[%clk 0:00:02.6]} 68... Rh1 {[%clk 0:00:02.2]} 69. Bg2 {[%clk 0:00:01.9]}
69... Rxc1 {[%clk 0:00:02]} 70. Rxb7+ {[%clk 0:00:02.5]} 70... Ka8 {[%clk
0:00:02.5]} 71. Rb4+ {[%clk 0:00:02.4]} 71... Ka7 {[%clk 0:00:02.4]} 72. Rb7+
{[%clk 0:00:03.1]} 72... Ka8 {[%clk 0:00:02.6]} 73. Rc7+ {[%clk 0:00:03.7]} 1-0